bitfinex/quotes_SOLUSD_20250621
["timestamp","ask_amount","ask_price","bid_price","bid_amount"]
[1750527855753,15.096753,139.02,138.99,25.18166774]
[1750527856226,147.0,139.03,139.0,15.096753]
[1750527856435,147.0,139.03,138.99,40.27842074]
[1750527857445,1.5761,139.08,139.02,15.096753]
[1750527857446,149.3161,139.08,139.02,15.096753]
[1750527857646,15.096753,139.07,139.03,15.096753]
[1750527857835,147.74,139.08,139.05,25.17080186]
[1750527858162,147.0,139.08,139.06,15.096753]
[1750527858359,38.9347,139.13,139.05,25.17080186]
[1750527858543,0.74,139.11,139.07,15.096753]
[1750527858739,15.836753,139.11,139.05,25.17080186]
[1750527858932,15.836753,139.11,139.06,15.096753]
[1750527859332,0.74,139.11,139.07,15.096753]
[1750527859539,0.74,139.11,139.08,15.096753]
[1750527860037,0.74,139.11,139.09,7.18958947]
[1750527860656,15.836753,139.11,139.09,7.18958947]
[1750527861338,15.096753,139.11,139.09,7.18958947]
[1750527861658,0.74,139.09,139.07,7.19062342]
[1750527862160,0.74,139.09,139.06,25.1689494]
[1750527862522,26.0,139.12,139.06,40.2657024]
[1750527862851,41.836753,139.1,139.06,40.2657024]
[1750527863054,15.836753,139.09,139.06,25.1689494]
[1750527863359,26.0,139.1,139.06,40.2657024]
[1750527863553,41.836753,139.1,139.06,40.2657024]
[1750527863858,15.836753,139.09,139.06,25.1689494]
[1750527864058,162.836753,139.08,139.04,40.26936519]
[1750527864360,162.836753,139.08,139.04,25.17261219]
[1750527864538,162.836753,139.08,139.04,40.26936519]
[1750527864949,147.74,139.08,139.04,40.26936519]
[1750527865965,147.74,139.08,139.06,7.19114051]
[1750527866263,162.836753,139.08,139.06,7.19114051]
[1750527867271,147.74,139.08,139.06,7.19114051]
[1750527867644,147.0,139.08,139.06,22.28789351]
[1750527868666,147.0,139.08,139.07,15.096753]
[1750527870037,147.0,139.08,139.06,15.096753]
[1750527870243,147.0,139.08,139.06,18.64964886]
[1750527870445,147.0,139.08,139.05,15.096753]
[1750527872074,147.0,139.08,139.07,22.28737642]
[1750527872848,147.0,139.08,139.07,40.93702528]
[1750527873051,147.0,139.12,139.08,18.64964886]
[1750527873256,147.0,139.12,139.1,15.096753]
[1750527874078,147.0,139.12,139.11,15.096753]
[1750527874464,26.0,139.12,139.11,15.096753]
[1750527875176,26.0,139.12,139.1,18.64964886]
[1750527875177,147.74,139.16,139.1,33.74640186]
[1750527875360,26.0,139.12,139.1,33.74640186]
[1750527875556,26.0,139.12,139.11,15.096753]
[1750527875874,0.74,139.15,139.11,15.096753]
[1750527876080,162.096753,139.16,139.13,7.18752246]
[1750527876255,26.0,139.14,139.13,25.15632861]
[1750527877883,41.836753,139.14,139.13,7.18752246]
[1750527878388,0.74,139.13,139.11,25.1598541]
[1750527880179,26.74,139.13,139.11,25.1598541]
[1750527880476,26.74,139.13,139.11,17.97129829]
[1750527880855,26.0,139.13,139.11,17.97129829]
[1750527881050,26.0,139.13,139.11,33.06805129]
[1750527881268,162.096753,139.16,139.12,15.096753]
[1750527881475,188.096753,139.16,139.12,15.096753]
[1750527881691,188.836753,139.16,139.12,15.096753]
[1750527881999,173.74,139.16,139.12,15.096753]
[1750527882200,0.74,139.15,139.11,58.90625596]
[1750527882403,0.74,139.15,139.11,43.80950296]
[1750527882572,0.74,139.15,139.11,58.90625596]
[1750527883180,173.0,139.16,139.11,58.90625596]
[1750527883181,188.096753,139.16,139.12,18.64964886]
[1750527883397,188.836753,139.16,139.12,18.64964886]
[1750527884084,15.836753,139.15,139.11,40.2566071]
[1750527884282,15.096753,139.14,139.11,25.1598541]
[1750527884581,26.74,139.13,139.11,25.1598541]
[1750527885572,26.0,139.13,139.11,25.1598541]
[1750527885781,26.0,139.13,139.11,40.2566071]
[1750527887476,26.0,139.13,139.11,25.1598541]
[1750527887901,26.0,139.13,139.11,40.2566071]
[1750527888105,26.0,139.13,139.11,25.1598541]
[1750527888277,26.74,139.13,139.11,25.1598541]
[1750527888478,15.836753,139.12,139.11,7.18855581]
[1750527888792,26.0,139.12,139.11,7.18855581]
[1750527889392,26.0,139.12,139.1,7.1890726]
[1750527889691,26.74,139.12,139.1,7.1890726]
[1750527890094,0.74,139.11,139.1,7.1890726]
[1750527890301,162.836753,139.11,139.1,7.1890726]
[1750527890501,162.836753,139.11,139.06,33.07339189]
[1750527890502,162.096753,139.11,139.07,7.19062342]
[1750527890810,15.836753,139.09,139.07,7.19062342]
[1750527890974,0.74,139.09,139.07,7.19062342]
[1750527892182,41.836753,139.08,139.07,7.19062342]
[1750527893580,41.836753,139.08,139.05,7.19165767]
[1750527893996,0.74,139.07,139.05,7.19165767]
[1750527895486,41.096753,139.08,139.05,25.17080186]
[1750527895905,147.0,139.1,139.06,18.64964886]
[1750527896106,147.0,139.1,139.07,15.096753]
[1750527897311,147.0,139.1,139.06,18.64964886]
[1750527897515,147.74,139.1,139.07,15.096753]
[1750527897810,147.74,139.1,139.08,7.19010641]
[1750527898183,0.74,139.09,139.08,7.19010641]
[1750527899289,41.836753,139.09,139.08,7.19010641]
[1750527899694,26.0,139.07,139.06,17.97761967]
[1750527899884,147.0,139.1,139.06,33.07437267]
[1750527900087,147.0,139.1,139.07,15.096753]
[1750527900599,147.0,139.1,139.06,36.62726853]
[1750527900912,162.096753,139.1,139.06,17.97761967]
[1750527901219,26.0,139.07,139.06,17.97761967]
[1750527902212,0.74,139.06,139.05,7.19165767]
[1750527902415,15.836753,139.06,139.05,7.19165767]
[1750527903297,0.74,139.06,139.05,7.19165767]
[1750527903615,173.0,139.07,139.06,18.64964886]
[1750527903804,173.0,139.07,139.06,40.93754237]
[1750527904109,26.0,139.1,139.06,58.91539365]
[1750527904314,26.0,139.09,139.06,58.91539365]
[1750527905210,41.096753,139.09,139.06,25.16899179]
[1750527905397,26.74,139.09,139.06,25.16899179]
[1750527905591,26.0,139.09,139.06,40.26574479]
[1750527905798,26.74,139.09,139.08,7.19010641]
[1750527906103,26.0,139.09,139.08,7.19010641]
[1750527908622,26.74,139.09,139.08,7.19010641]
[1750527909720,41.836753,139.09,139.08,7.19010641]
[1750527909908,41.836753,139.09,139.05,25.17080186]
[1750527909909,147.0,139.08,139.05,25.17080186]
[1750527910233,162.836753,139.08,139.05,25.17080186]
[1750527911020,147.74,139.08,139.05,25.17080186]
[1750527911207,147.0,139.08,139.07,15.096753]
[1750527911524,147.0,139.08,139.06,33.74640186]
[1750527912636,147.0,139.08,139.07,7.19062342]
[1750527913330,147.74,139.08,139.07,7.19062342]
[1750527914013,162.836753,139.08,139.07,7.19062342]
[1750527914200,26.73,139.05,139.04,7.19217491]
[1750527914401,26.73,139.05,139.01,43.82769359]
[1750527914926,35.79128066,139.05,139.01,43.82769359]
[1750527915135,147.73,139.04,139.01,25.17804473]
[1750527915340,0.73,139.02,139.01,25.17804473]
[1750527915522,35.79128066,139.02,139.01,25.17804473]
[1750527915705,26.73,139.02,139.01,7.19372706]
[1750527915898,35.79128066,139.02,139.01,7.19372706]
[1750527916316,26.73,139.02,139.01,7.19372706]
[1750527916536,35.79128066,139.02,138.99,25.18150544]
[1750527916905,41.83781575,139.02,138.99,25.18150544]
[1750527917532,41.10781575,139.02,138.99,25.18150544]
[1750527917728,0.73,139.02,138.99,25.18150544]
[1750527918132,26.0,139.01,138.99,25.18150544]
[1750527918637,26.0,139.01,138.99,40.28932119]
[1750527919137,26.0,139.01,138.99,25.18150544]
[1750527919319,26.73,139.01,138.99,25.18150544]
[1750527920032,15.83781575,139.0,138.99,7.19476221]
[1750527920714,15.83781575,139.0,138.96,25.18630442]
[1750527921336,0.73,139.0,138.96,25.18630442]
[1750527921503,15.83781575,139.0,138.96,40.29412017]
[1750527921708,15.83781575,139.0,138.96,25.18630442]
[1750527921910,0.73,138.99,138.96,25.18630442]
[1750527922245,15.10781575,138.98,138.96,25.18630442]
[1750527922538,0.73,138.97,138.96,7.19631548]
[1750527922835,26.73,138.95,138.94,7.19735137]
[1750527923035,41.83781575,138.95,138.94,7.19735137]
[1750527923732,1.5673,138.94,138.89,7.1999424]
[1750527923915,41.10781575,138.9,138.89,7.1999424]
[1750527924120,26.0,138.9,138.89,7.1999424]
[1750527924317,41.83781575,138.9,138.89,7.1999424]
[1750527924915,41.83781575,138.9,138.86,18.0024628]
[1750527925310,15.10781575,138.89,138.86,18.0024628]
[1750527925634,15.83781575,138.87,138.85,7.20201656]
[1750527926137,15.10781575,138.87,138.85,7.20201656]
[1750527926337,26.0,138.86,138.85,25.20705797]
[1750527926543,41.83781575,138.86,138.85,25.20705797]
[1750527926736,41.83781575,138.86,138.85,7.20201656]
[1750527926938,41.83781575,138.86,138.84,7.20253529]
[1750527927443,26.0,138.86,138.84,7.20253529]
[1750527927750,162.83781575,138.89,138.85,33.75746461]
[1750527927935,15.10781575,138.87,138.84,25.20887352]
[1750527928447,15.10781575,138.88,138.84,25.20887352]
[1750527928636,162.10781575,138.89,138.84,40.31668927]
[1750527929145,15.10781575,138.87,138.84,25.20887352]
[1750527929335,0.73,138.88,138.84,25.20887352]
[1750527929540,15.10781575,138.88,138.84,40.31668927]
[1750527929742,15.10781575,138.88,138.84,25.20887352]
[1750527929926,15.10781575,138.88,138.84,40.31668927]
[1750527930344,15.83781575,138.88,138.84,25.20887352]
[1750527930525,15.10781575,138.87,138.84,25.20887352]
[1750527930732,15.83781575,138.88,138.84,25.20887352]
[1750527930940,0.73,138.88,138.84,25.20887352]
[1750527931250,15.10781575,138.87,138.84,25.20887352]
[1750527931547,0.73,138.88,138.84,25.20887352]
[1750527931759,15.10781575,138.87,138.84,25.20887352]
[1750527932221,0.73,138.88,138.84,25.20887352]
[1750527932423,162.10781575,138.89,138.85,33.75746461]
[1750527932639,162.83781575,138.89,138.85,18.64964886]
[1750527933040,162.83781575,138.89,138.86,25.20524268]
[1750527933435,147.73,138.89,138.86,25.20524268]
[1750527933640,147.0,138.89,138.86,25.20524268]
[1750527933955,147.0,138.89,138.86,40.31305843]
[1750527934959,147.0,138.89,138.86,33.11156052]
[1750527935634,147.0,138.89,138.86,18.00374477]
[1750527936035,147.0,138.89,138.86,33.11156052]
[1750527936237,147.0,138.89,138.86,40.31305843]
[1750527936437,147.0,138.89,138.86,25.20524268]
[1750527936735,147.0,138.89,138.86,40.31305843]
[1750527938461,162.10781575,138.88,138.86,25.20524268]
[1750527938653,0.73,138.87,138.86,25.20524268]
[1750527939743,162.83781575,138.88,138.86,25.20524268]
[1750527940131,0.73,138.87,138.86,25.20524268]
[1750527940336,0.73,138.87,138.86,18.00374477]
[1750527940531,0.73,138.86,138.85,7.20201656]
[1750527940737,15.83781575,138.86,138.85,7.20201656]
[1750527942464,15.83781575,138.86,138.83,18.00658535]
[1750527942631,15.83781575,138.85,138.83,18.00658535]
[1750527944241,15.83781575,138.85,138.81,61.23445278]
[1750527944438,0.75,138.83,138.81,25.21432173]
[1750527944839,0.75,138.82,138.81,25.21432173]
[1750527945053,35.08846836,138.82,138.76,7.2066878]
[1750527945238,9.08846836,138.79,138.77,18.01527311]
[1750527945436,9.83846836,138.79,138.77,18.01527311]
[1750527945679,9.83846836,138.79,138.76,7.2066878]
[1750527945965,9.08846836,138.78,138.76,7.2066878]
[1750527946260,9.08846836,138.78,138.75,18.0179008]
[1750527946261,26.75,138.75,138.69,7.21032518]
[1750527946466,9.08846836,138.74,138.69,34.3246065]
[1750527946678,9.83846836,138.74,138.69,25.23613814]
[1750527946836,9.83846836,138.74,138.69,40.40613468]
[1750527946837,15.91999654,138.74,138.69,40.40613468]
[1750527947042,26.0,138.75,138.71,15.16999654]
[1750527947235,0.75,138.74,138.69,61.28776406]
[1750527947441,0.75,138.72,138.69,40.40613468]
[1750527947663,0.75,138.72,138.69,25.23613814]
[1750527948239,15.91999654,138.72,138.69,25.23613814]
[1750527948556,0.75,138.7,138.69,25.23613814]
[1750527949747,15.16999654,138.72,138.69,25.23613814]
[1750527949946,0.75,138.71,138.69,25.23613814]
[1750527950161,0.75,138.71,138.69,7.21032518]
[1750527950162,0.75,138.7,138.69,7.21032518]
[1750527950463,0.75,138.7,138.68,7.21084511]
[1750527951161,15.16999654,138.71,138.68,25.23795788]
[1750527951371,26.75,138.74,138.68,40.40795442]
[1750527951575,41.91999654,138.74,138.69,18.64964886]
[1750527951872,15.91999654,138.73,138.69,33.8196454]
[1750527952456,15.91999654,138.73,138.7,25.23431866]
[1750527953672,26.0,138.74,138.7,40.4043152]
[1750527953847,26.0,138.74,138.71,15.16999654]
[1750527954241,26.0,138.74,138.7,25.23431866]
[1750527954545,15.91999654,138.72,138.7,25.23431866]
[1750527955651,15.16999654,138.71,138.7,25.23431866]
[1750527956554,15.91999654,138.72,138.68,43.88760674]
[1750527956750,15.91999654,138.72,138.68,59.05760328]
[1750527956945,41.16999654,138.74,138.7,15.16999654]
[1750527957254,26.0,138.72,138.71,15.16999654]
[1750527957457,26.0,138.75,138.71,15.16999654]
[1750527957661,26.0,138.75,138.72,15.16999654]
[1750527958150,26.0,138.75,138.68,79.94183229]
[1750527958351,26.0,138.75,138.72,15.16999654]
[1750527958551,26.0,138.75,138.73,7.20824623]
[1750527958752,15.16999654,138.76,138.73,25.22886181]
[1750527959151,15.91999654,138.76,138.73,25.22886181]
[1750527959586,0.75,138.76,138.73,25.22886181]
[1750527959955,15.91999654,138.76,138.73,25.22886181]
[1750527960148,162.16999654,138.77,138.73,40.39885835]
[1750527960353,147.0,138.77,138.73,25.22886181]
[1750527960556,147.75,138.77,138.75,7.2072072]
[1750527960765,15.91999654,138.76,138.75,7.2072072]
[1750527962174,0.75,138.72,138.7,7.20980533]
[1750527962373,15.91999654,138.71,138.7,7.20980533]
[1750527962578,15.91999654,138.71,138.67,18.02768059]
[1750527963469,26.0,138.72,138.68,33.8196454]
[1750527963672,1.5614,138.79,138.71,15.16999654]
[1750527963886,15.91999654,138.78,138.74,15.16999654]
[1750527964179,41.91999654,138.78,138.74,15.16999654]
[1750527964376,147.75,138.8,138.7,41.9307454]
[1750527964580,162.91999654,138.8,138.72,61.27450978]
[1750527964782,162.91999654,138.8,138.76,15.16999654]
[1750527964989,147.75,138.8,138.76,15.16999654]
[1750527965162,162.91999654,138.8,138.76,15.16999654]
[1750527965884,15.16999654,138.79,138.75,15.16999654]
[1750527966082,15.91999654,138.79,138.75,15.16999654]
[1750527966582,15.91999654,138.79,138.76,7.2066878]
[1750527967292,15.91999654,138.78,138.76,7.2066878]
[1750527967495,162.16999654,138.8,138.76,7.2066878]
[1750527967797,162.91999654,138.8,138.76,7.2066878]
[1750527968001,147.0,138.8,138.76,40.39340385]
[1750527968352,147.0,138.8,138.77,15.16999654]
[1750527968473,147.0,138.8,138.76,40.39340385]
[1750527969286,147.0,138.8,138.77,15.16999654]
[1750527969602,147.0,138.8,138.78,15.16999654]
[1750527969760,147.0,138.8,138.76,25.22340731]
[1750527969761,26.0,138.81,138.77,18.64964886]
[1750527970103,0.75,138.83,138.79,15.16999654]
[1750527970463,15.16999654,138.84,138.8,15.16999654]
[1750527970791,15.91999654,138.84,138.81,25.21432173]
[1750527971404,26.0,138.83,138.81,25.21432173]
[1750527971575,15.91999654,138.85,138.81,25.21432173]
[1750527971770,0.75,138.85,138.81,25.21432173]
[1750527971999,15.91999654,138.85,138.81,25.21432173]
[1750527972390,15.91999654,138.84,138.81,25.21432173]
[1750527972608,0.75,138.83,138.81,25.21432173]
[1750527973105,15.91999654,138.82,138.81,7.20409192]
[1750527974377,26.75,138.82,138.81,7.20409192]
[1750527974600,26.75,138.82,138.79,25.21795518]
[1750527975477,0.75,138.82,138.79,25.21795518]
[1750527975913,147.75,138.82,138.79,25.21795518]
[1750527977510,147.0,138.82,138.8,15.16999654]
[1750527977683,147.69,138.82,138.79,25.21795518]
[1750527978602,147.69,138.82,138.79,40.38795172]
[1750527978812,147.0,138.82,138.79,40.38795172]
[1750527979120,147.0,138.82,138.8,15.16999654]
[1750527979299,0.69,138.8,138.79,7.20513005]
[1750527979500,15.85999654,138.8,138.79,7.20513005]
[1750527980810,0.69,138.8,138.77,25.22158968]
[1750527981111,162.16999654,138.82,138.77,40.39158622]
[1750527981318,24.47992123,138.89,138.81,15.16999654]
[1750527981319,0.69,138.86,138.81,15.16999654]
[1750527981518,15.85999654,138.86,138.82,15.16999654]
[1750527982014,147.0,138.87,138.83,15.16999654]
[1750527982215,147.0,138.87,138.84,15.16999654]
[1750527982387,0.69,138.89,138.85,15.16999654]
[1750527982595,41.85999654,138.89,138.85,15.16999654]
[1750527982901,26.0,138.87,138.86,7.20149791]
[1750527983832,26.0,138.88,138.86,25.20524268]
[1750527984411,162.85999654,138.87,138.84,7.20253529]
[1750527984731,15.85999654,138.85,138.84,7.20253529]
[1750527984910,15.85999654,138.85,138.82,25.2125054]
[1750527985321,15.16999654,138.86,138.82,40.38250194]
[1750527986132,15.16999654,138.86,138.82,25.2125054]
[1750527986439,0.69,138.85,138.82,25.2125054]
[1750527986933,147.0,138.87,138.82,40.38250194]
[1750527987153,162.85999654,138.87,138.82,40.38250194]
[1750527987524,147.69,138.87,138.82,40.38250194]
[1750527987710,162.85999654,138.87,138.82,40.38250194]
[1750527988431,147.69,138.87,138.82,40.38250194]
[1750527988631,162.85999654,138.87,138.82,40.38250194]
[1750527989126,147.0,138.86,138.82,40.38250194]
[1750527989330,147.0,138.86,138.82,25.2125054]
[1750527989532,147.0,138.86,138.82,40.38250194]
[1750527989726,147.0,138.86,138.82,25.2125054]
[1750527990047,147.0,138.86,138.85,15.16999654]
[1750527990211,147.0,138.86,138.82,43.86215426]
[1750527990417,147.0,138.86,138.85,15.16999654]
[1750527991055,147.0,138.86,138.83,18.64964886]
[1750527991259,147.69,138.86,138.83,33.8196454]
[1750527991936,147.69,138.86,138.84,7.20253529]
[1750527993825,147.0,138.86,138.84,22.37253183]
[1750527994451,0.69,138.89,138.85,15.16999654]
[1750527994736,0.69,138.89,138.86,15.16999654]
[1750527994934,147.69,138.9,138.86,15.16999654]
[1750527995138,147.0,138.89,138.87,15.16999654]
[1750527995337,147.0,138.89,138.88,7.20046082]
[1750527997862,162.85999654,138.89,138.88,7.20046082]
[1750527998332,147.69,138.89,138.88,7.20046082]
[1750527998550,147.0,138.89,138.88,7.20046082]
[1750527998751,147.69,138.89,138.88,7.20046082]
[1750527999256,162.85999654,138.89,138.88,7.20046082]
[1750527999672,147.69,138.89,138.86,25.20481313]
[1750527999888,0.69,138.87,138.86,7.20149791]
[1750528000181,15.85999654,138.87,138.86,7.20149791]
[1750528001151,15.16999654,138.87,138.84,18.00614311]
[1750528001466,0.69,138.86,138.84,18.00614311]
[1750528003588,0.69,138.86,138.82,59.0321508]
[1750528004157,147.0,138.88,138.83,15.16999654]
[1750528004465,15.84999654,138.87,138.82,59.0321508]
[1750528005477,162.16999654,138.88,138.85,25.20705797]
[1750528005660,147.0,138.88,138.85,25.20705797]
[1750528006266,147.0,138.88,138.85,40.37705451]
[1750528006574,147.0,138.88,138.77,7.20616848]
[1750528006575,0.68,138.85,138.77,7.20616848]
[1750528006774,0.68,138.83,138.78,18.01396502]
[1750528007080,15.84999654,138.83,138.79,15.16999654]
[1750528007276,15.84999654,138.83,138.79,18.64964886]
[1750528007472,15.16999654,138.81,138.78,43.8692631]
[1750528007666,15.16999654,138.82,138.79,18.64964886]
[1750528007866,0.68,138.84,138.8,15.16999654]
[1750528008075,15.16999654,138.84,138.81,18.64964886]
[1750528008262,26.68,138.86,138.81,18.64964886]
[1750528008485,15.84999654,138.85,138.81,18.64964886]
[1750528008690,147.0,138.87,138.81,15.16999654]
[1750528008872,15.16999654,138.86,138.83,18.64964886]
[1750528009285,15.84999654,138.86,138.83,18.64964886]
[1750528009702,0.68,138.86,138.84,7.20253529]
[1750528009998,15.84999654,138.89,138.85,33.8196454]
[1750528010293,15.84999654,138.89,138.85,18.64964886]
[1750528010505,0.68,138.88,138.85,18.64964886]
[1750528011274,15.84999654,138.88,138.85,18.64964886]
[1750528011589,0.68,138.88,138.86,7.20149791]
[1750528011990,15.84999654,138.88,138.86,7.20149791]
[1750528012374,0.68,138.88,138.86,7.20149791]
[1750528012771,15.84999654,138.89,138.86,25.20524268]
[1750528013304,0.68,138.88,138.86,25.20524268]
[1750528013514,15.16999654,138.89,138.86,25.20524268]
[1750528014020,15.84999654,138.9,138.86,25.20524268]
[1750528014621,15.16999654,138.9,138.86,40.37523922]
[1750528014927,147.0,138.9,138.87,33.8196454]
[1750528015595,15.16999654,138.92,138.88,15.16999654]
[1750528015789,15.84999654,138.92,138.89,7.1999424]
[1750528016411,15.84999654,138.92,138.89,25.1997984]
[1750528016806,0.68,138.92,138.89,25.1997984]
[1750528017016,15.84999654,138.92,138.89,25.1997984]
[1750528017696,15.84999654,138.92,138.89,17.999856]
[1750528018029,162.84999654,138.93,138.89,17.999856]
[1750528018811,26.0,138.9,138.89,36.64950486]
[1750528019339,26.68,138.9,138.88,7.20046082]
[1750528019500,26.0,138.9,138.88,7.20046082]
[1750528019903,26.0,138.9,138.89,33.8196454]
[1750528020202,26.0,138.9,138.89,18.64964886]
[1750528020398,0.68,138.92,138.89,33.8196454]
[1750528020721,147.0,138.93,138.9,15.16999654]
[1750528020942,0.68,138.95,138.92,15.16999654]
[1750528021153,15.84999654,138.96,138.92,15.16999654]
[1750528021460,41.84999654,138.95,138.91,15.16999654]
[1750528021772,26.0,138.94,138.91,15.16999654]
[1750528021959,15.84999654,138.95,138.92,7.19838756]
[1750528022123,15.84999654,138.95,138.92,25.19435646]
[1750528022330,26.0,138.94,138.92,40.364353]
[1750528022745,26.0,138.94,138.93,15.16999654]
[1750528023630,26.0,138.94,138.92,40.364353]
[1750528023829,0.68,138.89,138.85,15.13361656]
[1750528024065,15.16999654,138.87,138.85,7.20201656]
[1750528024250,15.16999654,138.86,138.85,25.20705797]
[1750528024765,15.84999654,138.86,138.85,7.20201656]
[1750528025471,15.84999654,138.86,138.83,7.20305409]
[1750528025472,26.68,138.84,138.83,7.20305409]
[1750528025640,41.84999654,138.84,138.83,7.20305409]
[1750528025981,41.16999654,138.84,138.81,18.64964886]
[1750528026267,41.16999654,138.85,138.81,18.64964886]
[1750528026571,41.84999654,138.85,138.81,18.64964886]
[1750528026766,26.68,138.85,138.81,18.64964886]
[1750528027079,41.84999654,138.85,138.81,18.64964886]
[1750528027453,15.16999654,138.84,138.81,18.64964886]
[1750528027970,15.16999654,138.82,138.79,25.85477891]
[1750528028271,41.16999654,138.82,138.79,43.86760404]
[1750528028474,15.16999654,138.81,138.79,43.86760404]
[1750528028668,15.16999654,138.8,138.79,25.21795518]
[1750528028847,0.68,138.81,138.79,25.21795518]
[1750528029047,15.16999654,138.8,138.79,25.21795518]
[1750528029267,15.84999654,138.81,138.79,25.21795518]
[1750528030185,15.84999654,138.81,138.79,18.01282513]
[1750528032472,26.0,138.82,138.8,18.64964886]
[1750528033405,26.0,138.82,138.8,33.8196454]
[1750528033578,15.16999654,138.85,138.82,18.64964886]
[1750528033898,147.0,138.86,138.82,18.64964886]
[1750528034079,162.84999654,138.86,138.82,15.16999654]
[1750528034476,15.87999654,138.85,138.83,7.20305409]
[1750528035667,0.71,138.85,138.83,7.20305409]
[1750528037180,188.16999654,138.86,138.83,25.21068932]
[1750528037373,188.87999654,138.86,138.83,25.21068932]
[1750528037691,188.87999654,138.86,138.83,40.38068586]
[1750528037692,173.0,138.86,138.83,40.38068586]
[1750528038100,0.71,138.89,138.84,33.8196454]
[1750528038101,15.87999654,138.89,138.84,33.8196454]
[1750528038285,15.16999654,138.88,138.84,18.64964886]
[1750528038602,0.71,138.87,138.85,7.20201656]
[1750528039188,15.16999654,138.86,138.85,7.20201656]
[1750528039392,15.87999654,138.86,138.85,7.20201656]
[1750528040721,15.87999654,138.86,138.83,18.00763523]
[1750528041823,0.71,138.85,138.83,18.00763523]
[1750528042126,173.0,138.87,138.82,7.20357297]
[1750528042417,15.16999654,138.83,138.82,7.20357297]
[1750528042589,26.0,138.83,138.82,7.20357297]
[1750528042789,26.0,138.83,138.8,25.21501276]
[1750528043227,26.0,138.83,138.81,18.64964886]
[1750528044312,26.0,138.83,138.82,7.20357297]
[1750528045916,0.71,138.82,138.78,25.21970673]
[1750528046117,41.16999654,138.83,138.75,7.2072072]
[1750528046118,15.16999654,138.79,138.75,7.2072072]
[1750528046318,15.16999654,138.77,138.75,25.22522521]
[1750528046489,15.87999654,138.78,138.75,25.22522521]
[1750528047517,26.0,138.8,138.75,25.22522521]
[1750528047518,41.16999654,138.79,138.75,25.22522521]
[1750528048025,41.87999654,138.79,138.75,25.22522521]
[1750528048734,15.87999654,138.78,138.75,25.22522521]
[1750528049115,15.87999654,138.77,138.75,25.22522521]
[1750528049818,41.16999654,138.79,138.75,40.39522175]
[1750528050012,41.87999654,138.79,138.75,40.39522175]
[1750528050410,41.87999654,138.79,138.75,25.22522521]
[1750528051210,15.16999654,138.78,138.75,25.22522521]
[1750528052338,15.87999654,138.78,138.75,25.22522521]
[1750528052915,15.16999654,138.77,138.75,25.22522521]
[1750528053116,15.87999654,138.76,138.75,25.22522521]
[1750528053613,15.87999654,138.76,138.75,15.76515625]
[1750528053811,26.71,138.76,138.75,15.76515625]
[1750528054854,41.87999654,138.76,138.75,7.2072072]
[1750528055554,188.87999654,138.76,138.75,7.2072072]
[1750528055876,188.87999654,138.76,138.73,25.2288506]
[1750528056174,15.87999654,138.75,138.73,25.2288506]
[1750528056324,0.71,138.74,138.73,7.20824623]
[1750528056725,15.87999654,138.74,138.73,7.20824623]
[1750528057653,173.0,138.76,138.73,59.04850721]
[1750528057834,173.71,138.76,138.73,43.87851067]
[1750528058039,162.87999654,138.76,138.73,43.87851067]
[1750528059252,0.71,138.75,138.73,43.87851067]
[1750528059440,162.87999654,138.76,138.73,43.87851067]
[1750528060148,147.0,138.76,138.74,18.64964886]
[1750528060455,147.0,138.76,138.75,33.8196454]
[1750528060854,147.0,138.76,138.75,18.64964886]
[1750528061434,147.0,138.76,138.75,25.85685606]
[1750528062972,147.0,138.76,138.75,7.2072072]
[1750528063258,162.87999654,138.76,138.75,7.2072072]
[1750528063434,162.87999654,138.76,138.73,25.22886181]
[1750528063864,147.71,138.76,138.73,25.22886181]
[1750528064038,147.0,138.76,138.74,33.8196454]
[1750528064247,147.0,138.76,138.74,18.64964886]
[1750528064567,147.0,138.76,138.75,15.16999654]
[1750528065461,147.0,138.76,138.75,41.0268526]
[1750528066151,26.0,138.78,138.75,95.08090664]
[1750528066355,26.0,138.78,138.77,18.64964886]
[1750528066549,15.90999654,138.81,138.77,33.8196454]
[1750528066755,26.0,138.78,138.77,33.8196454]
[1750528067543,26.0,138.79,138.77,59.04123508]